bitfinex-derivatives/quotes_SOLF0:USTF0_20250831
["timestamp","ask_amount","ask_price","bid_price","bid_amount"]
[1756638331463,120.42,203.68,203.64,7.25]
[1756638331664,120.42,203.68,203.65,11.769162]
[1756638331858,120.42,203.68,203.66,4.519162]
[1756638332161,120.42,203.68,203.67,4.519162]
[1756638337461,120.42,203.68,203.61,7.25]
[1756638337665,120.42,203.68,203.62,4.5175845]
[1756638337865,120.42,203.68,203.63,4.5175845]
[1756638338062,120.42,203.68,203.64,4.5175845]
[1756638338263,120.42,203.68,203.65,4.5175845]
[1756638338562,120.42,203.68,203.66,4.5175845]
[1756638338764,120.42,203.68,203.67,4.5175845]
[1756638341168,120.42,203.68,203.67,4.5182551]
[1756638348180,120.42,203.68,203.53,16.98600196]
[1756638348379,120.42,203.68,203.55,7.38]
[1756638348580,120.42,203.68,203.57,7.38]
[1756638348881,120.42,203.68,203.59,7.38]
[1756638349081,120.42,203.68,203.53,16.98600196]
[1756638349082,120.42,203.68,203.61,7.38]
[1756638349376,120.42,203.68,203.6,4.53293782]
[1756638349377,120.42,203.68,203.62,4.53327965]
[1756638349578,120.42,203.68,203.63,4.53327965]
[1756638349780,120.42,203.68,203.65,7.38]
[1756638349983,120.42,203.68,203.67,7.38]
[1756638350181,120.42,203.68,203.67,11.91327965]
[1756638350383,330.22,203.72,203.68,7.38]
[1756638350683,120.12,203.71,203.69,4.53327965]
[1756638350886,120.12,203.71,203.7,4.53327965]
[1756638351784,120.12,203.71,203.68,7.38]
[1756638351981,120.12,203.71,203.69,4.53245311]
[1756638352182,120.12,203.71,203.7,4.53245311]
[1756638353887,120.12,203.71,203.7,4.53395931]
[1756638356290,120.62,203.71,203.7,4.53395931]
[1756638356680,120.62,203.71,203.58,7.38]
[1756638356886,120.12,203.71,203.59,4.56886885]
[1756638357086,120.12,203.71,203.6,4.56886885]
[1756638357287,120.12,203.71,203.58,7.38]
[1756638357288,120.97473234,203.71,203.61,4.56886885]
[1756638357487,120.97473234,203.71,203.62,4.56886885]
[1756638357687,120.97473234,203.71,203.63,4.56886885]
[1756638357887,120.97473234,203.71,203.64,4.56886885]
[1756638358088,120.97473234,203.71,203.65,4.56886885]
[1756638358389,126.46886985,203.71,203.66,4.56886885]
[1756638358589,126.46886985,203.71,203.67,4.56886885]
[1756638358790,126.46886985,203.71,203.58,7.38]
[1756638358992,126.46886985,203.71,203.59,4.55365431]
[1756638359192,5.49413751,203.7,203.6,4.55365431]
[1756638359384,5.49413751,203.69,203.61,4.55518075]
[1756638359588,5.49413751,203.69,203.62,4.55518075]
[1756638359787,5.49413751,203.69,203.63,4.55518075]
[1756638359988,5.49413751,203.69,203.64,4.55518075]
[1756638360184,5.49413751,203.69,203.65,4.55518075]
[1756638360497,5.49413751,203.68,203.52,7.38]
[1756638360687,120.36,203.67,203.53,4.55633196]
[1756638360892,120.36,203.67,203.54,4.55633196]
[1756638361095,120.36,203.67,203.55,4.55633196]
[1756638361294,120.36,203.67,203.52,7.38]
[1756638361295,125.85413751,203.67,203.56,4.55633196]
[1756638361495,5.49413751,203.66,203.57,4.55633196]
[1756638361695,120.36,203.67,203.58,4.55633196]
[1756638361696,5.49413751,203.65,203.58,4.55633196]
[1756638361897,5.49413751,203.65,203.59,4.55633196]
[1756638362096,5.49413751,203.65,203.6,4.55633196]
[1756638362291,5.49413751,203.64,203.61,4.55633196]
[1756638362497,120.4,203.63,203.62,4.55633196]
[1756638366196,120.9,203.63,203.62,4.55633196]
[1756638366502,126.39413751,203.63,203.47,7.38]
[1756638366695,125.89413751,203.63,203.48,4.49991527]
[1756638366896,125.89413751,203.63,203.49,4.49991527]
[1756638367101,5.49413751,203.62,203.5,4.49991527]
[1756638367394,5.49413751,203.62,203.51,4.49991527]
[1756638367599,5.49413751,203.62,203.52,4.49991527]
[1756638367801,5.49413751,203.62,203.53,4.49991527]
[1756638367996,5.49413751,203.62,203.54,4.49991527]
[1756638368199,5.49413751,203.59,203.47,7.38]
[1756638368401,120.42,203.58,203.48,4.49818154]
[1756638368703,120.42,203.58,203.49,4.49818154]
[1756638368903,120.42,203.58,203.5,4.49818154]
[1756638369104,120.42,203.58,203.51,4.49818154]
[1756638369299,120.42,203.58,203.52,4.49818154]
[1756638369505,120.42,203.58,203.47,7.38]
[1756638369697,120.42,203.58,203.48,4.49159376]
[1756638369902,120.42,203.58,203.49,4.49159376]
[1756638370103,120.42,203.58,203.5,4.49159376]
[1756638370304,120.42,203.58,203.51,4.49159376]
[1756638370504,120.42,203.58,203.52,4.49159376]
[1756638370705,120.42,203.58,203.47,7.38]
[1756638371005,120.42,203.58,203.48,4.48883699]
[1756638371305,120.42,203.58,203.49,4.48883699]
[1756638371506,120.42,203.58,203.5,4.48883699]
[1756638371809,120.42,203.58,203.51,4.48883699]
[1756638371998,120.42,203.58,203.52,4.48883699]
[1756638372203,120.42,203.58,203.47,7.38]
[1756638372399,120.42,203.58,203.48,4.53848598]
[1756638372603,120.42,203.58,203.49,4.53848598]
[1756638372804,450.58,203.58,203.5,4.53848598]
[1756638373003,450.58,203.58,203.47,7.38]
[1756638373004,450.58,203.58,203.51,4.53848598]
[1756638373200,450.58,203.58,203.47,7.38]
[1756638373404,450.58,203.58,203.48,4.53651822]
[1756638373699,450.58,203.58,203.49,4.53651822]
[1756638373905,450.58,203.58,203.5,4.53651822]
[1756638374204,450.58,203.58,203.35,10.60600196]
[1756638374205,450.58,203.58,203.36,7.94]
[1756638374509,450.58,203.58,203.38,7.94]
[1756638374708,450.58,203.58,203.4,7.94]
[1756638375007,450.58,203.58,203.42,7.94]
[1756638375207,450.58,203.58,203.44,7.94]
[1756638375409,450.58,203.58,203.45,4.53462986]
[1756638375608,450.58,203.58,203.46,4.53462986]
[1756638375810,450.58,203.58,203.47,4.53462986]
[1756638376009,450.58,203.58,203.48,4.53462986]
[1756638376212,450.58,203.58,203.34,7.94]
[1756638376413,450.58,203.58,203.36,7.94]
[1756638376607,456.07413751,203.58,203.38,7.94]
[1756638376811,456.07413751,203.58,203.4,7.94]
[1756638377111,456.07413751,203.58,203.41,4.53091636]
[1756638377314,456.07413751,203.58,203.42,4.53091636]
[1756638377611,456.07413751,203.58,203.43,4.53091636]
[1756638377909,470.83413751,203.58,203.44,4.53091636]
[1756638378107,470.83413751,203.58,203.45,4.53091636]
[1756638378307,470.83413751,203.58,203.4,7.94]
[1756638378511,465.34,203.58,203.41,4.52654026]
[1756638378706,470.83413751,203.58,203.42,4.52654026]
[1756638378912,470.83413751,203.58,203.4,7.94]
[1756638379215,470.83413751,203.58,203.41,4.52656207]
[1756638379412,470.83413751,203.58,203.42,4.52656207]
[1756638379612,470.83413751,203.58,203.43,4.52656207]
[1756638379909,470.83413751,203.58,203.44,4.52656207]
[1756638380111,14.76,203.56,203.4,7.94]
[1756638380315,14.76,203.56,203.41,4.52446524]
[1756638380612,14.76,203.56,203.4,7.94]
[1756638380613,14.76,203.56,203.42,4.52446524]
[1756638380913,14.76,203.56,203.43,4.52446524]
[1756638381113,14.76,203.56,203.4,7.94]
[1756638381313,14.76,203.56,203.41,4.52229406]
[1756638381514,14.76,203.57,203.42,4.52229406]
[1756638381713,14.76,203.57,203.43,4.52229406]
[1756638382015,14.76,203.57,203.4,7.94]
[1756638382016,120.42,203.56,203.4,7.94]
[1756638382213,120.42,203.56,203.42,7.94]
[1756638382414,120.42,203.56,203.43,4.52041876]
[1756638382614,120.42,203.56,203.42,7.94]
[1756638382808,120.42,203.56,203.43,4.51904327]
[1756638383009,120.42,203.56,203.36,7.94]
[1756638383010,14.76,203.52,203.36,7.94]
[1756638383214,37.22,203.51,203.37,4.51943861]
[1756638383518,37.22,203.51,203.38,4.51943861]
[1756638383712,37.22,203.51,203.36,7.94]
[1756638383915,37.22,203.51,203.37,4.51703615]
[1756638384217,37.22,203.51,203.38,4.51703615]
[1756638384418,37.22,203.51,203.36,7.94]
[1756638384617,37.22,203.51,203.37,4.51479812]
[1756638384817,37.22,203.51,203.38,4.51479812]
[1756638385117,37.22,203.51,203.36,7.94]
[1756638385324,37.22,203.51,203.37,4.51466501]
[1756638385615,37.22,203.51,203.38,4.51466501]
[1756638385810,37.22,203.51,203.36,7.94]
[1756638386008,37.22,203.51,203.37,4.51291375]
[1756638386215,37.22,203.51,203.36,7.94]
[1756638386421,37.22,203.51,203.38,7.94]
[1756638386716,52.86,203.5,203.38,7.94]
[1756638387017,5.49413751,203.55,203.38,7.94]
[1756638387318,67.66,203.54,203.4,7.94]
[1756638388209,5.49413751,203.57,203.41,4.50994926]
[1756638388210,83.6,203.53,203.41,4.50994926]
[1756638388414,83.6,203.53,203.42,7.94]
[1756638389015,96.74,203.52,203.42,7.94]
[1756638394125,96.74,203.52,203.43,4.51162301]
[1756638394319,96.74,203.52,203.42,7.94]
[1756638394618,96.74,203.52,203.43,4.51178073]
[1756638394819,96.74,203.52,203.42,7.94]
[1756638395019,96.74,203.52,203.43,4.51178073]
[1756638395224,96.74,203.52,203.42,7.94]
[1756638395424,96.74,203.52,203.43,4.51336954]
[1756638395719,96.74,203.52,203.42,7.94]
[1756638395925,96.74,203.52,203.43,4.51336954]
[1756638396115,96.74,203.52,203.42,7.94]
[1756638396425,96.74,203.52,203.43,4.51537297]
[1756638396618,96.74,203.52,203.42,7.94]
[1756638396819,96.74,203.52,203.43,4.51537297]
[1756638397019,96.74,203.52,203.42,7.94]
[1756638397221,96.74,203.52,203.43,4.51742693]
[1756638397524,96.74,203.52,203.44,4.51742693]
[1756638397725,96.74,203.52,203.42,7.94]
[1756638397923,96.74,203.52,203.43,4.51770122]
[1756638398123,96.74,203.52,203.44,4.51770122]
[1756638398325,96.74,203.52,203.42,7.94]
[1756638398525,96.74,203.52,203.43,4.52038878]
[1756638398724,96.74,203.52,203.44,4.52038878]
[1756638398924,96.74,203.52,203.42,7.94]
[1756638399126,96.74,203.52,203.43,4.52038878]
[1756638399328,96.74,203.52,203.44,4.52038878]
[1756638399526,96.74,203.52,203.45,4.52038878]
[1756638399726,96.74,203.52,203.42,7.94]
[1756638399926,96.74,203.52,203.43,4.52349486]
[1756638400129,96.74,203.52,203.44,4.52349486]
[1756638400325,96.74,203.52,203.42,7.94]
[1756638400524,96.74,203.52,203.43,4.5267766]
[1756638400725,96.74,203.52,203.44,4.5267766]
[1756638401021,96.74,203.52,203.45,4.5267766]
[1756638401220,96.74,203.52,203.46,4.5267766]
[1756638401422,96.74,203.52,203.42,7.94]
[1756638401625,96.74,203.52,203.43,4.53127663]
[1756638401829,96.74,203.52,203.44,4.53127663]
[1756638402025,96.74,203.52,203.45,4.53127663]
[1756638402323,96.74,203.52,203.46,4.53836125]
[1756638402526,96.74,203.52,203.47,4.53836125]
[1756638402729,96.74,203.52,203.42,7.94]
[1756638402919,96.74,203.52,203.43,4.53866225]
[1756638403119,96.74,203.52,203.44,4.53866225]
[1756638403321,96.74,203.52,203.45,4.53866225]
[1756638403520,96.74,203.52,203.46,4.53866225]
[1756638403721,96.74,203.52,203.47,4.53866225]
[1756638403921,96.74,203.52,203.42,7.94]
[1756638404124,96.74,203.52,203.43,4.54182038]
[1756638404322,96.74,203.52,203.44,4.54182038]
[1756638404527,102.23413751,203.52,203.45,4.54182038]
[1756638404722,102.23413751,203.52,203.46,4.54182038]
[1756638404929,102.23413751,203.52,203.47,4.54182038]
[1756638405124,102.23413751,203.52,203.48,4.54182038]
[1756638405331,102.23413751,203.52,203.42,7.94]
[1756638405531,102.23413751,203.52,203.43,4.54578706]
[1756638405733,102.23413751,203.52,203.44,4.54578706]
[1756638405933,102.23413751,203.52,203.45,4.54578706]
[1756638406130,102.23413751,203.52,203.46,4.54578706]
[1756638406329,102.23413751,203.52,203.47,4.54578706]
[1756638406530,102.23413751,203.52,203.48,4.54578706]
[1756638406730,102.23413751,203.52,203.42,7.94]
[1756638406943,102.23413751,203.52,203.43,4.54737589]
[1756638407132,102.23413751,203.52,203.44,4.54737589]
[1756638407332,102.23413751,203.52,203.45,4.54737589]
[1756638407533,102.23413751,203.52,203.46,4.54737589]
[1756638407734,102.23413751,203.52,203.47,4.54737589]
[1756638407934,102.23413751,203.52,203.43,7.72]
[1756638407935,102.23413751,203.52,203.48,4.54737589]
[1756638408132,102.23413751,203.52,203.43,7.72]
[1756638408439,102.23413751,203.52,203.44,4.55121283]
[1756638408633,102.23413751,203.52,203.45,4.55121283]
[1756638408833,102.23413751,203.52,203.46,4.55121283]
[1756638409035,102.23413751,203.52,203.47,4.55121283]
[1756638409238,102.23413751,203.52,203.48,4.55121283]
[1756638409434,5.49413751,203.51,203.49,4.55121283]
[1756638409635,5.49413751,203.52,203.45,7.72]
[1756638409835,120.58,203.51,203.47,7.72]
[1756638410141,120.58,203.5,203.49,7.72]
[1756638410347,120.58,203.5,203.49,12.27352532]
[1756638411041,120.58,203.5,203.49,12.27580177]
[1756638413642,5.49413751,203.54,203.49,12.27580177]
[1756638413834,120.6,203.53,203.5,4.55580177]
[1756638414039,120.6,203.53,203.52,7.72]
[1756638414241,120.6,203.53,203.52,12.27580177]
[1756638421245,120.6,203.53,203.52,12.23477494]
[1756638425955,330.16,203.58,203.53,7.72]
[1756638426149,120.46,203.57,203.54,4.51477494]
[1756638426350,120.46,203.57,203.56,7.72]
[1756638426551,120.46,203.57,203.56,12.23477494]
[1756638430055,120.46,203.57,203.56,12.73477494]
[1756638431160,120.46,203.57,203.56,12.73869243]
[1756638431847,120.46,203.57,203.56,12.7457872]
[1756638432356,120.38,203.62,203.57,7.74]
[1756638432558,120.38,203.62,203.59,7.74]
[1756638432748,120.38,203.62,203.6,4.5257872]
[1756638432953,120.38,203.62,203.59,7.74]
[1756638433152,120.38,203.62,203.6,4.52434958]
[1756638433354,120.38,203.62,203.59,7.74]
[1756638433557,120.38,203.62,203.61,7.74]
[1756638433753,120.38,203.62,203.61,12.26286633]
[1756638434159,120.4,203.68,203.61,12.26286633]
[1756638434458,120.4,203.68,203.62,4.52286633]
[1756638434757,120.4,203.68,203.63,4.52286633]
[1756638434953,120.4,203.68,203.64,4.52286633]
[1756638435160,120.4,203.68,203.65,4.52286633]
[1756638435360,120.4,203.68,203.61,7.74]
[1756638435659,120.4,203.68,203.62,4.51315914]
[1756638435960,120.4,203.68,203.61,7.74]
[1756638435961,120.4,203.68,203.63,12.25315914]
[1756638436158,120.4,203.68,203.64,4.51315914]
[1756638436359,120.4,203.68,203.65,4.51315914]
[1756638436560,120.4,203.68,203.63,7.74]
[1756638436762,120.4,203.68,203.64,4.51039821]
[1756638436958,120.4,203.68,203.63,7.74]
[1756638436959,120.4,203.68,203.65,4.51039821]
[1756638437159,0.85473234,203.71,203.66,4.51039821]
[1756638437458,14.72,203.71,203.67,4.51039821]
[1756638437662,14.72,203.71,203.68,4.51039821]
[1756638437966,14.72,203.71,203.69,4.51039821]
[1756638438154,14.72,203.71,203.65,7.74]
[1756638438361,330.18,203.82,203.67,7.74]
[1756638438557,0.85450148,203.79,203.68,4.50390712]
[1756638438758,0.85450148,203.79,203.69,4.50390712]
[1756638439063,0.85450148,203.79,203.7,4.50390712]
[1756638439262,0.85450148,203.79,203.71,4.50390712]
[1756638439460,0.85450148,203.79,203.67,7.74]
[1756638439461,0.85450148,203.79,203.72,4.50390712]
[1756638439659,0.85450148,203.79,203.67,7.74]
[1756638439856,0.85450148,203.79,203.68,4.4891818]
[1756638440160,0.85450148,203.79,203.69,4.4891818]
[1756638440359,0.85450148,203.79,203.7,4.4891818]
[1756638440562,0.85450148,203.79,203.71,4.4891818]
[1756638440761,0.85450148,203.79,203.67,7.74]
[1756638440963,0.85450148,203.79,203.68,4.48594383]
[1756638441257,0.85450148,203.79,203.69,12.22594383]
[1756638441458,0.85450148,203.79,203.7,4.48594383]
[1756638441858,0.85450148,203.79,203.71,4.48301494]
[1756638442060,0.85450148,203.79,203.69,7.74]
[1756638442359,0.85450148,203.79,203.7,4.48299626]
[1756638442660,0.85450148,203.79,203.71,4.48299626]
[1756638442959,0.85450148,203.79,203.69,7.74]
[1756638443160,0.85450148,203.79,203.7,4.48053933]
[1756638443361,0.85450148,203.79,203.71,4.48053933]
[1756638443563,0.85450148,203.79,203.69,7.74]
[1756638443761,0.85450148,203.79,203.7,4.47846781]
[1756638443956,0.85450148,203.79,203.71,4.47846781]
[1756638444156,0.85450148,203.79,203.69,7.74]
[1756638444359,0.85450148,203.79,203.7,4.47856577]
[1756638444562,0.85450148,203.79,203.71,4.47856577]
[1756638444763,0.85450148,203.79,203.69,7.74]
[1756638445061,0.85450148,203.79,203.7,4.47676408]
[1756638445257,0.85450148,203.79,203.71,4.47676408]
[1756638445460,0.85450148,203.79,203.69,7.74]
[1756638445660,0.85450148,203.79,203.7,4.47540146]
[1756638445861,0.85450148,203.79,203.71,4.47540146]
[1756638446162,0.85450148,203.79,203.69,7.74]
[1756638446361,0.85450148,203.79,203.7,4.47566306]
[1756638446564,0.85450148,203.79,203.71,4.47566306]
[1756638446767,0.85450148,203.79,203.69,7.74]
[1756638447067,0.85450148,203.79,203.52,320.0]
[1756638447068,0.85450148,203.79,203.53,7.74]
[1756638447365,0.85450148,203.79,203.57,7.74]
[1756638447565,0.85450148,203.79,203.58,4.47549773]
[1756638447757,0.85450148,203.79,203.59,4.47549773]
[1756638447962,0.85450148,203.79,203.61,7.74]
[1756638448163,0.85450148,203.79,203.62,4.47549773]
[1756638448360,0.85450148,203.79,203.64,7.74]
[1756638448563,0.85450148,203.79,203.66,7.74]
[1756638448762,0.85450148,203.79,203.67,4.47549773]
[1756638448963,0.85450148,203.79,203.68,4.47549773]
[1756638449264,0.85450148,203.79,203.69,4.47549773]
[1756638449569,0.85450148,203.79,203.66,7.74]
[1756638449767,0.85450148,203.79,203.67,4.47593296]
[1756638450066,0.85450148,203.79,203.68,4.47593296]
[1756638450261,0.85450148,203.79,203.66,7.74]
[1756638450469,0.85450148,203.79,203.67,4.47654274]
[1756638450769,0.85450148,203.79,203.68,4.47654274]
[1756638450970,0.85450148,203.79,203.66,7.74]
[1756638451170,0.85450148,203.79,203.67,4.47618412]
[1756638451469,0.85450148,203.79,203.68,4.47618412]
[1756638451668,0.85450148,203.79,203.66,7.74]
[1756638451969,0.85450148,203.79,203.67,4.47704898]
[1756638452270,0.85450148,203.79,203.68,12.21704898]
[1756638452464,0.85450148,203.79,203.68,7.74]
[1756638453165,0.85450148,203.79,203.69,4.47933764]
[1756638453371,0.85450148,203.79,203.68,7.74]
[1756638453665,0.85450148,203.79,203.69,4.47881621]
[1756638453871,0.85450148,203.79,203.68,7.74]
[1756638454173,0.85450148,203.79,203.69,4.4788146]
[1756638454362,0.85450148,203.79,203.68,7.74]
[1756638454567,0.85450148,203.79,203.69,4.48036451]
[1756638454870,0.85450148,203.79,203.68,7.74]
[1756638455170,0.85450148,203.79,203.69,4.4803629]
[1756638455369,0.85450148,203.79,203.68,7.74]
[1756638455569,0.85450148,203.79,203.69,4.47539939]
[1756638455872,0.85450148,203.79,203.68,7.74]
[1756638456066,0.85450148,203.79,203.69,4.47546701]
[1756638456263,0.85450148,203.79,203.68,7.74]
[1756638456467,0.85450148,203.79,203.69,4.47704532]
[1756638456672,0.85450148,203.79,203.68,7.74]
[1756638456873,0.85450148,203.79,203.69,4.47695673]
[1756638457070,0.85450148,203.79,203.49,113.36974244]
[1756638457071,0.85450148,203.79,203.64,7.74]
[1756638457265,0.85450148,203.79,203.65,4.47774042]
[1756638457576,0.85450148,203.79,203.67,7.74]
[1756638457872,0.85450148,203.79,203.68,4.47774042]
[1756638458073,0.85450148,203.79,203.67,7.74]
[1756638458270,0.85450148,203.79,203.68,4.48022696]
[1756638458475,0.85450148,203.79,203.67,7.74]
[1756638458672,0.85450148,203.79,203.68,4.48259906]
[1756638458872,0.85450148,203.79,203.67,7.74]
[1756638459072,0.85450148,203.79,203.68,4.48260201]
[1756638459286,0.85450148,203.79,203.67,7.74]
[1756638459475,0.85450148,203.79,203.68,4.48534313]
[1756638459671,0.85450148,203.79,203.67,7.74]
[1756638461378,0.85450148,203.79,203.68,4.49267059]
[1756638461673,0.85450148,203.79,203.67,7.74]
[1756638461878,0.85450148,203.79,203.68,4.49268016]
[1756638462078,0.85450148,203.79,203.67,7.74]
[1756638462275,0.85450148,203.79,203.69,7.59]
[1756638463378,6.34863899,203.79,203.69,7.59]
[1756638463576,5.49413751,203.78,203.69,7.59]
[1756638464178,0.85450148,203.79,203.69,7.59]
[1756638464179,120.2,203.77,203.69,7.59]
[1756638469474,120.2,203.77,203.7,4.49296527]
[1756638469679,120.2,203.77,203.71,12.08290349]
[1756638469881,120.2,203.77,203.71,7.59]
[1756638470480,120.2,203.77,203.73,7.59]
[1756638470783,5.49413751,203.78,203.73,7.59]
[1756638470975,120.2,203.77,203.56,7.59]
[1756638471182,120.2,203.77,203.58,7.59]
[1756638471478,120.2,203.77,203.57,4.49401926]
[1756638471479,120.2,203.77,203.6,7.59]
[1756638471679,120.2,203.77,203.62,7.59]
[1756638471880,120.2,203.77,203.64,7.59]
[1756638472080,125.69413751,203.77,203.66,7.59]
[1756638472383,125.69413751,203.77,203.68,7.59]
[1756638472578,125.69413751,203.77,203.69,4.49401926]
[1756638472778,125.69413751,203.77,203.7,4.49401926]
[1756638472979,125.69413751,203.77,203.71,4.49401926]
[1756638473174,125.69413751,203.77,203.72,4.49401926]
[1756638473383,5.49413751,203.76,203.68,7.59]
[1756638473679,5.49413751,203.76,203.69,4.50153652]
[1756638473882,5.49413751,203.76,203.7,4.50153652]
[1756638474081,5.49413751,203.76,203.71,12.09153652]
[1756638474377,5.49413751,203.76,203.73,7.59]
[1756638474584,120.2,203.75,203.73,7.59]
[1756638474782,120.2,203.75,203.56,4.11694952]
[1756638475082,120.2,203.75,203.58,7.59]
[1756638475282,120.2,203.75,203.6,7.59]
[1756638475482,120.2,203.75,203.62,7.59]
[1756638475679,120.2,203.75,203.64,7.59]
[1756638475984,120.2,203.75,203.66,7.59]
[1756638476183,120.2,203.75,203.68,7.59]
[1756638476379,120.2,203.75,203.69,4.50369314]
[1756638476586,120.2,203.75,203.58,4.11159025]
[1756638476587,120.2,203.75,203.71,7.59]
[1756638476780,120.2,203.75,203.72,4.50369314]
[1756638476976,120.2,203.75,203.73,4.50369314]
[1756638477182,120.2,203.75,203.74,4.50369314]
[1756638477379,125.69413751,203.75,203.74,4.50369314]
[1756638478285,120.2,203.75,203.74,4.50369314]
[1756638481791,128.38535667,203.75,203.74,4.50369314]
[1756638482793,120.7,203.75,203.65,7.59]
[1756638482992,120.7,203.75,203.57,4.11159025]
[1756638482993,5.51312245,203.71,203.67,7.59]
[1756638483195,120.2,203.7,203.67,7.59]
[1756638483493,120.2,203.7,203.68,4.51691446]
[1756638483689,120.2,203.7,203.69,4.51691446]
[1756638484394,120.2,203.7,203.69,12.10691446]
[1756638489600,5.51312245,203.74,203.7,7.53]
[1756638489801,28.64,203.73,203.72,7.53]
[1756638489998,28.64,203.73,203.72,12.04691446]
[1756638493797,28.64,203.73,203.72,7.53]
[1756638493997,28.64,203.73,203.72,12.0536872]
[1756638494300,58.74,203.73,203.72,12.0536872]
[1756638496597,58.74,203.73,203.72,4.5236872]
[1756638500505,64.25312245,203.73,203.72,4.5236872]
[1756638502805,58.74,203.73,203.72,4.5236872]
[1756638504608,58.74,203.73,203.72,4.54341406]
[1756638505410,64.25312245,203.73,203.72,4.5418917]
[1756638505708,58.74,203.73,203.72,4.5418917]
[1756638506310,64.25312245,203.73,203.72,4.5418917]
[1756638515323,64.25312245,203.73,203.72,4.49765864]
[1756638515921,58.74,203.73,203.72,4.49765864]
[1756638516214,67.50968368,203.73,203.72,4.49765864]
[1756638516427,67.50968368,203.73,203.53,8.11034985]
[1756638516428,59.24,203.73,203.57,7.53]
[1756638516621,5.5182086,203.67,203.59,7.53]
[1756638516920,28.72,203.66,203.6,4.50074183]
[1756638517121,34.2382086,203.66,203.61,4.50074183]
[1756638517420,34.2382086,203.66,203.59,7.53]
[1756638517618,5.5182086,203.64,203.53,7.53]
[1756638518123,5.5182086,203.63,203.53,7.53]
[1756638518321,5.5182086,203.64,203.53,7.53]
[1756638519527,5.5182086,203.65,203.53,7.53]
[1756638521422,34.2382086,203.66,203.53,7.53]
[1756638523424,28.72,203.66,203.53,7.53]
[1756638526125,34.2382086,203.66,203.53,7.53]
[1756638526330,330.1,203.65,203.53,7.53]
[1756638526529,5.5182086,203.64,203.53,7.53]
[1756638526827,5.5182086,203.63,203.53,7.53]
[1756638527326,5.5182086,203.64,203.53,7.53]
[1756638527826,330.1,203.65,203.53,7.53]
[1756638527827,5.5182086,203.63,203.53,7.53]
[1756638528129,5.5182086,203.62,203.5,7.74]
[1756638528329,338.37731291,203.65,203.5,7.74]
[1756638528330,5.5182086,203.63,203.5,7.74]
[1756638528830,5.5182086,203.62,203.5,7.74]
[1756638530330,5.5182086,203.63,203.5,7.74]
[1756638530928,5.5182086,203.62,203.5,7.74]
[1756638531529,5.5182086,203.63,203.5,7.74]
[1756638532825,5.5182086,203.62,203.5,7.74]
[1756638533231,5.5182086,203.62,203.35,334.11159025]
[1756638533434,353.13731291,203.65,203.35,334.11159025]
[1756638533435,5.5182086,203.61,203.36,7.74]
[1756638534233,5.5182086,203.6,203.36,7.74]
[1756638534434,120.22,203.59,203.36,7.74]
[1756638535531,5.5182086,203.58,203.36,7.74]
[1756638535832,5.5182086,203.56,203.36,7.74]
[1756638536026,78.9382086,203.57,203.36,7.74]
[1756638536423,73.42,203.57,203.36,7.74]
[1756638536630,78.9382086,203.57,203.36,7.74]
[1756638537937,93.6982086,203.57,203.36,7.74]
[1756638538136,5.5182086,203.56,203.36,7.74]
[1756638538432,93.6982086,203.57,203.36,7.74]
[1756638539438,88.18,203.57,203.36,7.74]
[1756638540238,93.6982086,203.57,203.36,7.74]
[1756638540834,5.5182086,203.56,203.36,7.74]
[1756638541536,14.76,203.54,203.36,7.74]
[1756638542632,20.2782086,203.54,203.36,7.74]
[1756638543242,14.76,203.54,203.36,7.74]
[1756638543433,20.2782086,203.54,203.36,7.74]